Cogmind - Beta 14 @@@ ROGUE MODE // 2024.09.01 @ 12:27:47 Player: Beef Result: Destroyed by E7-AUQ(R) with Subdweller Machine Gun Performance ------------- Evolutions (0) 0 Regions Visited (3) 600 Robots Destroyed (25) 125 Value Destroyed (739) 739 Prototype IDs (3) 60 Alien Tech Used (0) 0 Bonus (252) 252 TOTAL SCORE: 1776 Bonus ------- Follower Combat Kills 252 Cogmind --------- Core Integrity 0/250 Matter 300/300 Energy 160/160 System Corruption 0% Temperature Cool (0) Movement Core (250) Ox4 Location -10/Subcaves Parts ------- > --- POWER (1) -------- Light Nuclear Core > --- PROPULSION (2) --- Subdweller Monowheel > --- UTILITY (2) ------ Small Storage Unit Targeting Computer > --- WEAPON (2) ------- Barrage Gun Makeshift Sword > --- INVENTORY (8) ---- Light Nuclear Core Aluminum Leg Subdweller Monowheel Improved Heat Sink Experimental Sensor Array Light Armor Plating Riot Gun Grenade Launcher Peak State ------------ > --- POWER ------------ Light Nuclear Core > --- PROPULSION ------- Light Treads Subdweller Monowheel > --- UTILITY ---------- Small Storage Unit Targeting Computer > --- WEAPON ----------- Barrage Gun Makeshift Sword > --- INVENTORY -------- Light Nuclear Core Aluminum Leg Subdweller Monowheel Improved Heat Sink Experimental Sensor Array Light Armor Plating Riot Gun Grenade Launcher [Rating: 17] Favorites ----------- Power Light Nuclear Core Engine Light Ion Engine Power Core Light Nuclear Core Propulsion Light Treads Treads Light Treads Leg Aluminum Leg Wheel Subdweller Monowheel Utility Small Storage Unit Device Experimental Sensor Array Storage Small Storage Unit Processor Targeting Computer Weapon Assault Rifle Energy Gun Beam Rifle Ballistic Gun Assault Rifle Slashing Weapon Makeshift Sword Build | -11 -10 -10 -10 ------- Run | Yrd Mat Min Sub Slots Evolved . | . . . . Power . | . . . . Propulsion . | . . . . Utility . | . . . . Weapon . | . . . . Parts Attached 25 | 8 2 4 11 Power 4 | 1 1 1 1 Engine 2 | 1 1 . . Core 2 | . . 1 1 Reactor . | . . . . Propulsion 10 | 4 . 1 5 Treads 6 | 2 . 1 3 Leg 1 | 1 . . . Wheel 3 | 1 . . 2 Hover . | . . . . Flight . | . . . . Utility 4 | 1 1 2 . Device 1 | . . 1 . Storage 2 | 1 . 1 . Processor 1 | . 1 . . Hackware . | . . . . Protection . | . . . . Artifact . | . . . . Weapon 7 | 2 . . 5 Energy Gun 1 | . . . 1 Energy Cannon . | . . . . Ballistic Gun 5 | 2 . . 3 Ballistic Cannon . | . . . . Launcher . | . . . . Special Weapon . | . . . . Impact Weapon . | . . . . Slashing Weapon 1 | . . . 1 Piercing Weapon . | . . . . Special Melee Weapon . | . . . . Unidentified Prototypes 1 | . . 1 . Parts Lost 3 | . . . 3 Power . | . . . . Propulsion 2 | . . . 2 Utility . | . . . . Weapon 1 | . . . 1 Highest Loss Streak 1 | . . . 1 To Critical Strikes . | . . . . Average Slot Usage (%) 99 | . 99 100 99 Engine 3 | . 14 3 . Core 10 | . . 10 14 Treads 25 | . 28 28 24 Wheel 2 | . . . 4 Storage 14 | . 14 14 14 Processor 13 | . 13 14 14 Energy Gun 4 | . . . 7 Ballistic Gun 23 | . 28 28 20 Peak Build Rating 17 | 6 7 15 17 Average Rating 11 | 4 6 9 13 On Entrance 6 | . 6 7 11 Naked Turns . | . . . . Heaviest Build 16 | 12 14 14 16 Greatest Support 40 | 40 40 40 40 Greatest Overweight (x) 4 | 1 . . 4 Average Overweight (x) . | . . . . Largest Inventory Capacity 8 | 8 8 8 8 Average Capacity 7 | 6 8 7 8 Most Carried 8 | 5 8 8 8 Average Carried 7 | 2 7 7 7 Final Capacity 8 | 8 8 8 8 Final Carried 8 | 5 8 8 8 Class Distribution -------------------- 100% | Mutant Dominant Class ---------------- Mutant | -10/Materials Mutant | -10/Mines Mutant | -10/Subcaves Resources | -11 -10 -10 -10 ----------- Run | Yrd Mat Min Sub Matter Collected 966 | 242 211 139 374 Remotely . | . . . . Salvage Created 845 | . 364 127 354 Parts 54 | . 24 9 21 Haulers Intercepted . | . . . . Recyclers Shooed . | . . . . Parts Field Recycled . | . . . . Retrieved Matter . | . . . . Parts Self-Destructed 7 | . . . 7 Prevented . | . . . . Kills | -11 -10 -10 -10 ------- Run | Yrd Mat Min Sub Combat Hostiles Destroyed 19 | . 9 2 8 Guns 19 | . 9 2 8 Classes Destroyed 9 | . 4 2 3 Worker 1 | . . 1 . Tunneler 1 | . . 1 . Operator 1 | . 1 . . Turret 1 | . . . 1 Watcher 2 | . 2 . . Swarmer 5 | . 3 . 2 Grunt 8 | . 6 2 . Sentry 1 | . . . 1 Subdweller 5 | . . . 5 Best Kill Streak 3 | . 3 2 2 Combat Bots Only 3 | . 3 2 2 Max Kills in Single Turn 2 | . 2 1 1 Gunslinging 1 | . 1 . . Exploded . | . . . . Melee . | . . . . Uniques/NPCs Destroyed . | . . . . Combat | -11 -10 -10 -10 -------- Run | Yrd Mat Min Sub Hostile Shots Fired 172 | . 29 16 127 Missed 72 | . 12 4 56 Damage Taken 1215 | . 194 150 871 Core 263 | . 58 14 191 Absorbed by Shields . | . . . . Core Remaining (%) 100 | 100 . . . Volleys Fired 85 | . 27 15 43 Largest 2 | . 2 2 2 Hottest 84 | . 40 40 84 Shots Fired 170 | . 54 30 86 Gun 170 | . 54 30 86 Cannon . | . . . . Launcher . | . . . . Special . | . . . . Kinetic 159 | . 54 30 75 Thermal 11 | . . . 11 Explosive . | . . . . Electromagnetic . | . . . . Robot Hit Streak 18 | . 9 18 8 Robot Miss Streak 3 | . 3 2 2 Penetration Max . | . . . . Secondary Targets 8 | . 4 1 3 Max Gunslinging Chain 1 | . 1 1 1 Shots Hit Robots 119 | . 34 23 62 Core Hits 50 | . 22 10 18 Critical Kills . | . . . . Critical Parts Destroyed 1 | . . 1 . Critical Strikes 2 | . . 1 1 Destroy 2 | . . 1 1 Melee Attacks 5 | . . . 5 Impact . | . . . . Slashing 5 | . . . 5 Piercing . | . . . . Sneak Attacks . | . . . . Combat Hostiles . | . . . . Follow-up Attacks . | . . . . Damage Inflicted 1766 | . 408 283 1075 Guns 1625 | . 408 283 934 Cannons . | . . . . Explosions . | . . . . Melee 141 | . . . 141 Ramming . | . . . . Kinetic 1508 | . 408 283 817 Thermal 117 | . . . 117 Explosive . | . . . . Electromagnetic . | . . . . Impact . | . . . . Slashing 141 | . . . 141 Piercing . | . . . . Highest Corruption . | . . . . Average Corruption . | . . . . Corruption Purged . | . . . . Corruption Blocked . | . . . . Overload Shots . | . . . . Overflow Damage . | . . . . Projectiles . | . . . . Explosions . | . . . . Melee . | . . . . Knockbacks . | . . . . Impact . | . . . . Kinetic . | . . . . Secondary . | . . . . Self-Inflicted Damage . | . . . . Shots . | . . . . Rammed . | . . . . Targets Rammed . | . . . . Kicked . | . . . . Crushed . | . . . . Highest Temperature 25 | . 9 21 25 Average Temperature 10 | . 4 14 9 Received Heat Transfer 561 | . 111 123 327 Siege Activations . | . . . . Robots Corrupted . | . . . . Combat Hostiles . | . . . . Parts Fried . | . . . . Impact Corruptions . | . . . . Robots Melted . | . . . . Combat Hostiles . | . . . . Parts Melted . | . . . . Heat Transferred 296 | . . . 296 Parts Sabotaged . | . . . . Parts Stolen . | . . . . Parts Stripped . | . . . . Power Chain Reactions . | . . . . Alert | -11 -10 -10 -10 ------- Run | Yrd Mat Min Sub Peak Influence 214 | . 214 133 . Initial 66 | . . 66 . Average 92 | . 104 96 . Maximum Alert Level 1 | . 1 . . Low Security (%) 98 | 100 97 100 . Level 1 1 | . 2 . . Level 2 . | . . . . Level 3 . | . . . . Level 4 . | . . . . Level 5 . | . . . . High Security . | . . . . Max Security . | . . . . Squads Dispatched 2 | . 2 . . Investigation 1 | . 1 . . Extermination . | . . . . Reinforcement 1 | . 1 . . Assault . | . . . . Garrison . | . . . . Intercept . | . . . . Searches Triggered . | . . . . Construction Impeded . | . . . . Haulers Reinforced . | . . . . Active Scanning Responses . | . . . . Cargo Convoy Interrupts . | . . . . Stealth | -11 -10 -10 -10 --------- Run | Yrd Mat Min Sub Distress Signals . | . . . . Communications Jammed . | . . . . Distress Signals . | . . . . Times Spotted 38 | . 14 7 17 Peak Tracking Total 6 | . 3 2 6 Tactical Retreats . | . . . . Traps | -11 -10 -10 -10 ------- Run | Yrd Mat Min Sub Traps Triggered . | . . . . Indirectly . | . . . . Trap Hack Attempts . | . . . . Triggered . | . . . . Disarmed . | . . . . Reprogrammed . | . . . . Reused . | . . . . Traps Extracted . | . . . . Installed . | . . . . Triggered . | . . . . Machines | -11 -10 -10 -10 ---------- Run | Yrd Mat Min Sub Machines Disabled 2 | . . . 2 Max in Single Turn 1 | . . . 1 Machines Repaired . | . . . . Machines Dismantled . | . . . . Machines Sabotaged 1 | . 1 . . Overloaded Fab Kills . | . . . . Hacking | -11 -10 -10 -10 --------- Run | Yrd Mat Min Sub Machines Accessed 4 | . 4 . . Terminals 4 | . 4 . . Fabricators . | . . . . Repair Stations . | . . . . Recycling Units . | . . . . Scanalyzers . | . . . . Garrison Access . | . . . . Total Hacks 15 | . 15 . . Successful 9 | . 9 . . Failed 6 | . 6 . . Catastrophic 3 | . 3 . . Database Lockouts . | . . . . Manual 10 | . 10 . . Terminals 15 | . 15 . . Fabricators . | . . . . Repair Stations . | . . . . Recycling Units . | . . . . Scanalyzers . | . . . . Garrison Access . | . . . . Terminal Hacks 6 | . 6 . . Prototype ID Bank 1 | . 1 . . Branch Access Points 1 | . 1 . . Emergency Access Points 1 | . 1 . . Alert Level 1 | . 1 . . Registered Prototypes 1 | . 1 . . Zone Layout 1 | . 1 . . Fabricator Hacks . | . . . . Repair Station Hacks . | . . . . Recycling Unit Hacks . | . . . . Scanalyzer . | . . . . Garrison Access Hacks . | . . . . Unauthorized Hacks 3 | . 3 . . Terminals 3 | . 3 . . Botnet 2 | . 2 . . Sabotage 1 | . 1 . . Fabricators . | . . . . Repair Stations . | . . . . Recycling Units . | . . . . Scanalyzers . | . . . . Garrison Access . | . . . . Data Cores Recovered 1 | . 1 . . Used 1 | . 1 . . Hacking Detections 4 | . 4 . . Full Trace Events . | . . . . Feedback Events . | . . . . Feedback Blocked . | . . . . Robot Schematics Acquired . | . . . . Robots Built . | . . . . Authchips . | . . . . Time . | . . . . Total Robot Build Rating . | . . . . Part Schematics Acquired . | . . . . Parts Built . | . . . . Authchips . | . . . . Time . | . . . . Total Part Build Rating . | . . . . Parts Repaired . | . . . . Time . | . . . . Parts Recycled . | . . . . Recycled Matter . | . . . . Retrieved Matter . | . . . . Retrieved Components . | . . . . Parts Scanalyzed . | . . . . Part Schematics Acquired . | . . . . Parts Damaged . | . . . . Bothacking | -11 -10 -10 -10 ------------ Run | Yrd Mat Min Sub Used RIF Installer . | . . . . Robots Hacked . | . . . . Non-combat . | . . . . Combat . | . . . . Robot Hacks Applied . | . . . . Relay Couplers Released . | . . . . Fabnet Peak Effective % . | . . . . Robots Rewired . | . . . . Allies Hacked . | . . . . Hacks Repelled . | . . . . Allies | -11 -10 -10 -10 -------- Run | Yrd Mat Min Sub Total Allies 3 | . . 3 . Largest Group 3 | . . 3 3 Highest-Rated Group 40 | . . 40 40 Highest-Rated Ally 16 | . . 16 16 Total Orders . | . . . . Ally Attacks 64 | . . 15 49 Total Damage 706 | . . 145 561 Kills 10 | . . 3 7 Allies Corrupted . | . . . . Allies Melted 1 | . . 1 . Intel | -11 -10 -10 -10 ------- Run | Yrd Mat Min Sub Robot Analysis Total . | . . . . Derelict Logs Recovered 2 | . . 1 1 Drone Launches . | . . . . Drone Recoveries . | . . . . Exploration | -11 -10 -10 -10 ------------- Run | Yrd Mat Min Sub Turns Passed 3193 | 99 524 684 1886 Spaces Moved 1819 | 58 258 382 1121 Core 10 | 9 . . 1 Treads 1643 | 46 258 382 957 Legs . | . . . . Wheels 166 | 3 . . 163 Hover . | . . . . Flight . | . . . . Fastest Speed 50 | 50 160 160 110 Average Speed 155 | 143 160 160 152 Slowest Speed 250 | 160 160 160 250 Overloaded Moves . | . . . . Propulsion Burnouts . | . . . . Robots Hopped . | . . . . Cave-ins Triggered . | . . . . Exploration Rate (%) 54 | 5 52 88 71 Regions Visited 3 Branch Regions 2 Pre-discovered Areas 2 | . . . 2 Known Exits Taken 2 | . 1 1 . Unknown Exits Taken 1 | 1 . . . Scrap Searched 8 | . . 1 7 Spaces Dug . | . . . . Terrain Destroyed . | . . . . Melee . | . . . . Projectile . | . . . . AOE . | . . . . Terrain Rammed . | . . . . Walls Destroyed . | . . . . Machines Disabled . | . . . . Actions | -11 -10 -10 -10 --------- Run | Yrd Mat Min Sub Total 2025 | 70 318 426 1211 Wait 41 | . 16 12 13 Move 1816 | 57 257 381 1121 Hop . | . . . . Pick Up 28 | 5 9 8 6 Fast Attach 11 | 6 1 . 4 Attach 2 | . . . 2 Detach . | . . . . Swap 12 | 2 1 4 5 Drop 25 | . 7 6 12 Fire 85 | . 27 15 43 Melee 5 | . . . 5 Ram . | . . . . Kick . | . . . . Crush . | . . . . Escape Stasis . | . . . . Rewire . | . . . . Trap . | . . . . Miscellaneous . | . . . . Route ------- -11/Scrapyard -10/Materials (discovered 4 exits: [*Mat x2] / *Min x2) -10/Mines (discovered 3 exits: [*Mat x2] / *Sub) -10/Subcaves (discovered 3 exits: [*Mat x2] / [*Rec]) History --------- Turn | Location | Event 17 | -11/Scrapyard | Discovered new exit (range 16) 100 | -11/Scrapyard | Entered Materials 133 | -10/Materials | Identified exit to Mines 303 | -10/Materials | Discovered new exit (range 7) 316 | -10/Materials | Build established: Mutant 469 | -10/Materials | Discovered new exit (range 11) 624 | -10/Materials | Entered Mines 670 | -10/Mines | Met a Derelict bent on vengeance 672 | -10/Mines | Found a damaged Exp. Sensor Array with a note attached 676 | -10/Mines | Found Prototype Device 677 | -10/Mines | Identified Exp. Sensor Array 905 | -10/Mines | Discovered new exit (range 13) 968 | -10/Mines | Assisted by bots powering up and referring to "LRC-V3" 1066 | -10/Mines | Discovered new exit (range 15) 1098 | -10/Mines | Identified exit to Subcaves 1235 | -10/Mines | Joined a pair of Derelicts in attacking an 0b10 outpost 1308 | -10/Mines | Entered Subcaves 1308 | -10/Subcaves | Accompanied by 3 allies 1638 | -10/Subcaves | Shifting Twisted Machinery released Piercing Trap 1646 | -10/Subcaves | Shifting Twisted Machinery released Barrage Gun 1668 | -10/Subcaves | Discovered new exit (range 15) 1691 | -10/Subcaves | Core integrity fell below 50% 2076 | -10/Subcaves | Learned location of Zion (-7) 2076 | -10/Subcaves | Met a Zionite searching for "candidates" 2882 | -10/Subcaves | Discovered new exit (range 11) 3082 | -10/Subcaves | Discovered new exit (range 14) 3178 | -10/Subcaves | Core integrity fell below 20% 3194 | -10/Subcaves | Destroyed by E7-AUQ(R) with Subdweller Machine Gun Last Messages --------------- 03130_ Found Sub. Beam Cannon. 03130_ Found Battle Cannon. 03130_ Found 32 Matter. 03137_ Searching scrap... 03137_ Found Mak. Sword. 03137_ Found 38 Matter. 03138_ Searching scrap... 03138_ Found Battle Cannon. 03138_ Found 41 Matter. 03145_ Searching scrap... 03145_ Found Sub. Laser. 03145_ Found 31 Matter. 03146_ Searching scrap... 03146_ Found Battle Rifle. 03146_ Found 59 Matter. 03156_ Dropped Barrage Gun. 03157_ Acquired Mak. Sword. 03158_ Acquired 10 matter. 03191_ Lgt. Treads destroyed. 03192_ Destroyed Scrap Shield. Map ----- +----------------------------------------------------+ | ?????????????????????????????????????? | | ?????????????????????????????????????? | | ?????????????????????????????????????? | | ?????????????????????????????????????? | | ?????????????????????????????????????? | | ?????????????????????????????????????? | | ?????????????????????????????????????? | | ?????????????????????????????????????? | | ?????????????????????????????###?????? | | ????????????????????##?####?##"#??#### | | ??????????????####### ## #?#" ### # | | ??????????????? ###" | | ??????????????## ## " ## | | ??????????????# ?# ###" #??# | | ???????????????# ##?# ##" ##?# | | ???????????????# #### ##" ### | | ???????????????# ## " | | ??????????????## " | | ??????????????# "" | | ??????????????# # "" | | ??????????????# < # #### | | ??????????????## ### ##??# | | ??????????###?## ## #?## ##???# | | ?????????##%### ## #?# #????## | | ?????????#%]#g#< ### ## ##?????#### | | ?????????##&R@][ ### ## #?????????? | | ?????????#%[<##< ## #### ?????????? | | ?????????##%## ##??# ?????????? | | ??????????###### ##??? ?????????? | | ???????????????## ##???? ????????? | | ????????????????####????? #????????? | | ????????????????????????? ?????????? | | ????????????????????????? ?????????? | | ?????????????????????????????????????? | | ?????????????????????????????????????? | | ?????????????????????????????????????? | | ?????????????????????????????????????? | | ?????????????????????????????????????? | | ?????????????????????????????????????? | | ?????????????????????????????????????? | | ?????????????????????????????????????? | | ?????????????????????????????????????? | | ?????????????????????????????????????? | | ?????????????????????????????????????? | | ?????????????????????????????????????? | | ?????????????????????????????????????? | | ?????????????????????????????????????? | | ?????????????????????????????????????? | | ?????????????????????????????????????? | | ?????????????????????????????????????? | +----------------------------------------------------+ Best States ------------- Heat Dissipation 25 Energy Generation 14 Energy Capacity 250 Matter Stores 300 Matter Capacity 300 Sight Range 16 Terrain Scan Density 10 Evasion (%) 40 Targeting Accuracy 5 Recoil Reduction 2 Item Schematics ----------------- None Robot Schematics ------------------ None Fabricated ------------ Nothing Alien Tech Used ----------------- None Achievements -------------- None Challenges ------------ None Game ------ Seed AdvancedGravmagNetwork Manual? 0 Play Time 00:15:10 Cumulative 103.6 hours Start 2024.09.01 @ 12:12:37 End 2024.09.01 @ 12:27:47 Sessions 1 Manual Loads 0 Difficulty Rogue Special Mode None Game No. 115 Rogue 115 Adventurer 0 Explorer 0 Win Type - Total 2 Types 2/0/0/0/0/0/0/0/0 Lore% 39 Gallery% 61 Achievement% 44 Wizard Run 0 Options --------- Layout 0 ASCII 0 Keyboard 1 Movement Numpad Keybinds 0 Fullscreen 2 Font 18/SmallcapsGlow Map View 76x50 Zoom Use 0% Tactical HUD 1 Map Filters NONE Filters NONE Steam 1 RUN: 09bd8c47-5057-4836-8f5b-c0ecb0d02fb3